[Event "*** Titled Tuesday Blitz"]
[Site "Chess.com"]
[Date "2021.04.06"]
[Round "5"]
[White "gmcorrales"]
[Black "suyu28"]
[Result "0-1"]
[WhiteElo "2780"]
[BlackElo "2608"]
[TimeControl "180+1"]
[EndTime "10:59:39 PDT"]
[Termination "suyu28 won on time"]

1. e4 {[%clk 0:03:00.9]} 1... c6 {[%clk 0:02:58.2]} 2. d4 {[%clk 0:02:59.1]}
2... d5 {[%clk 0:02:58.8]} 3. e5 {[%clk 0:02:59.1]} 3... Bf5 {[%clk 0:02:58.3]}
4. Nf3 {[%clk 0:02:59.6]} 4... e6 {[%clk 0:02:58.3]} 5. Nbd2 {[%clk 0:03:00]}
5... c5 {[%clk 0:02:48.7]} 6. dxc5 {[%clk 0:03:00.3]} 6... Bxc5 {[%clk
0:02:44.8]} 7. Nb3 {[%clk 0:03:00.2]} 7... Bb6 {[%clk 0:02:45.1]} 8. Nbd4 {[%clk
0:02:56.6]} 8... Ne7 {[%clk 0:02:42.8]} 9. Nxf5 {[%clk 0:02:51.1]} 9... Nxf5
{[%clk 0:02:41.6]} 10. Bd3 {[%clk 0:02:51.6]} 10... Nh4 {[%clk 0:02:34.2]} 11.
Bb5+ {[%clk 0:02:38.9]} 11... Nc6 {[%clk 0:02:30.9]} 12. O-O {[%clk 0:02:16.6]}
12... Nxf3+ {[%clk 0:02:22.5]} 13. Qxf3 {[%clk 0:02:17.5]} 13... O-O {[%clk
0:02:22.9]} 14. Qg3 {[%clk 0:02:06.9]} 14... Bd4 {[%clk 0:02:19.3]} 15. Bf4
{[%clk 0:01:59.7]} 15... Bxb2 {[%clk 0:02:07.3]} 16. Rab1 {[%clk 0:01:59.3]}
16... Bd4 {[%clk 0:02:07.1]} 17. c3 {[%clk 0:01:59.7]} 17... Bb6 {[%clk
0:02:00.3]} 18. Bh6 {[%clk 0:01:59.4]} 18... g6 {[%clk 0:01:58.8]} 19. Bxf8
{[%clk 0:02:00.3]} 19... Qxf8 {[%clk 0:01:57.3]} 20. Bxc6 {[%clk 0:02:00.5]}
20... bxc6 {[%clk 0:01:57.1]} 21. c4 {[%clk 0:02:01]} 21... d4 {[%clk 0:01:51]}
22. Qd3 {[%clk 0:01:55.9]} 22... Qc5 {[%clk 0:01:50]} 23. f4 {[%clk 0:01:55.6]}
23... Qa5 {[%clk 0:01:48.6]} 24. Rf2 {[%clk 0:01:52.6]} 24... Rd8 {[%clk
0:01:47.9]} 25. Kh1 {[%clk 0:01:52.7]} 25... h5 {[%clk 0:01:45.5]} 26. g3 {[%clk
0:01:49.7]} 26... Kg7 {[%clk 0:01:44.9]} 27. h3 {[%clk 0:01:48.5]} 27... Qc3
{[%clk 0:01:31]} 28. Rd1 {[%clk 0:01:46]} 28... Qb4 {[%clk 0:01:30.7]} 29. Kg2
{[%clk 0:01:45.3]} 29... Qe7 {[%clk 0:01:20.5]} 30. g4 {[%clk 0:01:40.6]} 30...
hxg4 {[%clk 0:01:17.7]} 31. hxg4 {[%clk 0:01:41.5]} 31... Rh8 {[%clk 0:01:18.1]}
32. g5 {[%clk 0:01:37.9]} 32... Qe8 {[%clk 0:00:46]} 33. Rf3 {[%clk 0:01:34.7]}
33... Rh4 {[%clk 0:00:39.4]} 34. Rh1 {[%clk 0:01:33.6]} 34... Rxh1 {[%clk
0:00:26.1]} 35. Kxh1 {[%clk 0:01:34.5]} 35... c5 {[%clk 0:00:26.4]} 36. Kg2
{[%clk 0:01:10.2]} 36... Qa4 {[%clk 0:00:24]} 37. Rf2 {[%clk 0:01:06.3]} 37...
Kg8 {[%clk 0:00:23]} 38. Kh3 {[%clk 0:01:01]} 38... Bd8 {[%clk 0:00:19.3]} 39.
Rh2 {[%clk 0:00:59.7]} 39... Be7 {[%clk 0:00:18.7]} 40. Kg4 {[%clk 0:00:56.4]}
40... Bf8 {[%clk 0:00:18.6]} 41. Rh1 {[%clk 0:00:54.4]} 41... Qc6 {[%clk
0:00:17.3]} 42. Qf3 {[%clk 0:00:53.2]} 42... Qa4 {[%clk 0:00:17.3]} 43. Qh3
{[%clk 0:00:52.1]} 43... Bg7 {[%clk 0:00:16.7]} 44. Qg2 {[%clk 0:00:51.2]} 44...
Qxc4 {[%clk 0:00:09.2]} 45. Rb1 {[%clk 0:00:49.6]} 45... Bf8 {[%clk 0:00:06.1]}
46. Rb3 {[%clk 0:00:41.7]} 46... Qc1 {[%clk 0:00:04.2]} 47. Rh3 {[%clk
0:00:32.6]} 47... Qb1 {[%clk 0:00:03.5]} 48. Qh1 {[%clk 0:00:19.3]} 48... Qf5+
{[%clk 0:00:02.7]} 49. Kg3 {[%clk 0:00:19.8]} 49... Bg7 {[%clk 0:00:02.9]} 50.
Qa8+ {[%clk 0:00:18.8]} 50... Bf8 {[%clk 0:00:02.9]} 51. Qf3 {[%clk 0:00:19.3]}
51... c4 {[%clk 0:00:01.9]} 52. Rh1 {[%clk 0:00:15]} 52... d3 {[%clk 0:00:02.5]}
53. Rd1 {[%clk 0:00:14.5]} 53... Bg7 {[%clk 0:00:02.9]} 54. Qa8+ {[%clk
0:00:14.1]} 54... Bf8 {[%clk 0:00:02.2]} 55. Qf3 {[%clk 0:00:12.6]} 55... Bg7
{[%clk 0:00:01.7]} 56. Kf2 {[%clk 0:00:13]} 56... Bf8 {[%clk 0:00:02.2]} 57. Kg2
{[%clk 0:00:12.8]} 57... Bc5 {[%clk 0:00:02.7]} 58. Rh1 {[%clk 0:00:12.1]} 58...
Bf8 {[%clk 0:00:02.9]} 59. Qh3 {[%clk 0:00:11.8]} 59... Bg7 {[%clk 0:00:03.2]}
60. Qxf5 {[%clk 0:00:12.1]} 60... exf5 {[%clk 0:00:03.5]} 61. Kf3 {[%clk
0:00:13]} 61... Bf8 {[%clk 0:00:03.8]} 62. Rc1 {[%clk 0:00:12.7]} 62... Bc5
{[%clk 0:00:03]} 63. Rxc4 {[%clk 0:00:12.3]} 63... Bb6 {[%clk 0:00:03.5]} 64.
Rc6 {[%clk 0:00:11.8]} 64... d2 {[%clk 0:00:03.7]} 65. Ke2 {[%clk 0:00:12.7]}
65... Ba5 {[%clk 0:00:03.9]} 66. Rd6 {[%clk 0:00:13]} 66... Bb4 {[%clk
0:00:04.1]} 67. Rd7 {[%clk 0:00:13.2]} 67... a5 {[%clk 0:00:04.3]} 68. a3 {[%clk
0:00:12.3]} 68... Bxa3 {[%clk 0:00:03.5]} 69. Kxd2 {[%clk 0:00:12.7]} 69... Bb4+
{[%clk 0:00:03.2]} 70. Kd3 {[%clk 0:00:13.2]} 70... Ba3 {[%clk 0:00:03.6]} 71.
Rb7 {[%clk 0:00:12.7]} 71... Bc1 {[%clk 0:00:03.7]} 72. Kd4 {[%clk 0:00:11.1]}
72... Bxf4 {[%clk 0:00:03.9]} 73. Ra7 {[%clk 0:00:10.6]} 73... Bd2 {[%clk
0:00:03.3]} 74. Kd5 {[%clk 0:00:10.2]} 74... Bxg5 {[%clk 0:00:03.4]} 75. Rxa5
{[%clk 0:00:10.3]} 75... Kf8 {[%clk 0:00:03.4]} 76. Ra7 {[%clk 0:00:10.4]} 76...
Be7 {[%clk 0:00:03.2]} 77. Rb7 {[%clk 0:00:10.7]} 77... g5 {[%clk 0:00:03.2]}
78. Rb1 {[%clk 0:00:08.7]} 78... Kg7 {[%clk 0:00:02.9]} 79. Rb6 {[%clk
0:00:08.4]} 79... g4 {[%clk 0:00:02.9]} 80. Rb7 {[%clk 0:00:06.6]} 80... Kf8
{[%clk 0:00:02.3]} 81. Kc6 {[%clk 0:00:06.1]} 81... g3 {[%clk 0:00:02.1]} 82.
Rb3 {[%clk 0:00:04.1]} 82... f4 {[%clk 0:00:01.7]} 0-1

[Event "*** Titled Tuesday Blitz"]
[Site "Chess.com"]
[Date "2021.04.06"]
[Round "5"]
[White "lukazz029"]
[Black "ellennilssen"]
[Result "0-1"]
[WhiteElo "2112"]
[BlackElo "2246"]
[TimeControl "180+1"]
[EndTime "10:59:43 PDT"]
[Termination "ellennilssen won on time"]

1. e4 {[%clk 0:02:58.7]} 1... e6 {[%clk 0:02:59.6]} 2. d4 {[%clk 0:02:57.8]}
2... d5 {[%clk 0:02:56.2]} 3. Nc3 {[%clk 0:02:56.5]} 3... Bb4 {[%clk 0:02:52.4]}
4. e5 {[%clk 0:02:56.5]} 4... c5 {[%clk 0:02:51.2]} 5. a3 {[%clk 0:02:52.5]}
5... Bxc3+ {[%clk 0:02:51.4]} 6. bxc3 {[%clk 0:02:52.3]} 6... Qa5 {[%clk
0:02:52.2]} 7. Bd2 {[%clk 0:02:46]} 7... Qa4 {[%clk 0:02:51.5]} 8. Ra2 {[%clk
0:02:43.8]} 8... Ne7 {[%clk 0:02:44.8]} 9. Qg4 {[%clk 0:02:40.2]} 9... g6 {[%clk
0:02:43.3]} 10. Nf3 {[%clk 0:02:30.4]} 10... Nbc6 {[%clk 0:02:29.2]} 11. Be2
{[%clk 0:02:27.3]} 11... Bd7 {[%clk 0:02:25.8]} 12. O-O {[%clk 0:02:26.4]} 12...
c4 {[%clk 0:02:23.5]} 13. Bg5 {[%clk 0:02:20.9]} 13... h5 {[%clk 0:02:14.9]} 14.
Qf4 {[%clk 0:02:17.5]} 14... Nf5 {[%clk 0:02:09.7]} 15. Bf6 {[%clk 0:02:17.3]}
15... Rg8 {[%clk 0:02:07.8]} 16. h4 {[%clk 0:02:14.8]} 16... Nce7 {[%clk
0:02:04]} 17. Ng5 {[%clk 0:02:12.1]} 17... Rf8 {[%clk 0:01:33.6]} 18. Rb1 {[%clk
0:02:08.7]} 18... O-O-O {[%clk 0:01:29.9]} 19. Rb4 {[%clk 0:02:03.5]} 19... Qa6
{[%clk 0:01:23.8]} 20. a4 {[%clk 0:02:02.1]} 20... Rde8 {[%clk 0:01:19]} 21. g3
{[%clk 0:01:55.4]} 21... Nc6 {[%clk 0:01:16.1]} 22. Rb1 {[%clk 0:01:50.5]} 22...
Qa5 {[%clk 0:01:15.9]} 23. Ra3 {[%clk 0:01:45.6]} 23... Nce7 {[%clk 0:01:02.4]}
24. Rba1 {[%clk 0:01:32.9]} 24... Bc6 {[%clk 0:00:58.9]} 25. Bf1 {[%clk
0:01:28.9]} 25... Ng8 {[%clk 0:00:52.4]} 26. Nh7 {[%clk 0:01:27.2]} 26... Nxf6
{[%clk 0:00:48.6]} 27. Nxf6 {[%clk 0:01:26]} 27... Re7 {[%clk 0:00:48.3]} 28.
Bh3 {[%clk 0:01:22.4]} 28... Qc7 {[%clk 0:00:46.3]} 29. a5 {[%clk 0:01:17.2]}
29... Qd8 {[%clk 0:00:33.2]} 30. Bxf5 {[%clk 0:01:16.2]} 30... exf5 {[%clk
0:00:31.4]} 31. Rb1 {[%clk 0:01:09]} 31... Re6 {[%clk 0:00:30.9]} 32. Nh7 {[%clk
0:01:02.6]} 32... Rfe8 {[%clk 0:00:23.2]} 33. Ng5 {[%clk 0:01:03.5]} 33... R6e7
{[%clk 0:00:18.4]} 34. Raa1 {[%clk 0:00:48.3]} 34... Bd7 {[%clk 0:00:18.4]} 35.
Qf3 {[%clk 0:00:31.5]} 35... Be6 {[%clk 0:00:18.4]} 36. Nh7 {[%clk 0:00:30.8]}
36... Qc7 {[%clk 0:00:17]} 37. Nf6 {[%clk 0:00:30.5]} 37... Rd8 {[%clk
0:00:17.6]} 38. Rb2 {[%clk 0:00:30.1]} 38... Qc6 {[%clk 0:00:17.5]} 39. a6
{[%clk 0:00:29.3]} 39... b6 {[%clk 0:00:17.6]} 40. Rab1 {[%clk 0:00:28.3]} 40...
Qa4 {[%clk 0:00:17.1]} 41. Qf4 {[%clk 0:00:24.7]} 41... Qxa6 {[%clk 0:00:17]}
42. Qg5 {[%clk 0:00:24.9]} 42... Qb7 {[%clk 0:00:15.9]} 43. Qh6 {[%clk
0:00:23.8]} 43... Qc7 {[%clk 0:00:15.5]} 44. Qg7 {[%clk 0:00:23.3]} 44... Kb8
{[%clk 0:00:12.4]} 45. Ra2 {[%clk 0:00:22.7]} 45... Ka8 {[%clk 0:00:11.7]} 46.
Rba1 {[%clk 0:00:22.8]} 46... Qc6 {[%clk 0:00:09]} 47. Qh6 {[%clk 0:00:19.5]}
47... a5 {[%clk 0:00:07.1]} 48. Qg5 {[%clk 0:00:19.1]} 48... Qc7 {[%clk
0:00:06.2]} 49. Rb1 {[%clk 0:00:17.7]} 49... Rb8 {[%clk 0:00:06.7]} 50. Qe3
{[%clk 0:00:15.7]} 50... Qc6 {[%clk 0:00:06.2]} 51. Rba1 {[%clk 0:00:14.6]}
51... Ra7 {[%clk 0:00:06.6]} 52. Qg5 {[%clk 0:00:08.8]} 52... Qc7 {[%clk
0:00:07]} 53. Qh6 {[%clk 0:00:08.4]} 53... b5 {[%clk 0:00:07.2]} 54. Qf4 {[%clk
0:00:07.6]} 54... b4 {[%clk 0:00:07.4]} 55. cxb4 {[%clk 0:00:07.6]} 55... Rxb4
{[%clk 0:00:07.6]} 56. c3 {[%clk 0:00:06.8]} 56... Rb3 {[%clk 0:00:07.7]} 57.
Qe3 {[%clk 0:00:07.2]} 57... Qb6 {[%clk 0:00:07.3]} 58. Nh7 {[%clk 0:00:05.5]}
58... Qb5 {[%clk 0:00:07.1]} 59. Kg2 {[%clk 0:00:05.1]} 59... a4 {[%clk
0:00:07.2]} 60. Ng5 {[%clk 0:00:05.2]} 60... a3 {[%clk 0:00:07.2]} 61. Nf3
{[%clk 0:00:04.6]} 61... Ra4 {[%clk 0:00:07]} 62. Nd2 {[%clk 0:00:04.3]} 62...
Rb2 {[%clk 0:00:06.5]} 63. Rxa3 {[%clk 0:00:04.2]} 63... Rxa3 {[%clk 0:00:05.3]}
64. Rxa3+ {[%clk 0:00:05.1]} 64... Kb7 {[%clk 0:00:06]} 65. Nf3 {[%clk
0:00:04.8]} 65... Rb3 {[%clk 0:00:05.9]} 66. Ra2 {[%clk 0:00:05.2]} 66... Rb1
{[%clk 0:00:05.3]} 67. Qd2 {[%clk 0:00:03.4]} 67... Qb3 {[%clk 0:00:04.3]} 68.
Rc2 {[%clk 0:00:02.8]} 68... Kc6 {[%clk 0:00:04.1]} 69. Ng5 {[%clk 0:00:03.3]}
69... Qa3 {[%clk 0:00:04.1]} 70. Nxe6 {[%clk 0:00:04.2]} 70... fxe6 {[%clk
0:00:04.2]} 71. Qh6 {[%clk 0:00:03.4]} 71... Qa1 {[%clk 0:00:04.6]} 72. Qxg6
{[%clk 0:00:02.8]} 72... Rg1+ {[%clk 0:00:04.7]} 73. Kf3 {[%clk 0:00:02.9]}
73... Qd1+ {[%clk 0:00:04.3]} 74. Re2 {[%clk 0:00:03.3]} 74... Qd3+ {[%clk
0:00:03.7]} 75. Re3 {[%clk 0:00:02.2]} 75... Qd1+ {[%clk 0:00:03.9]} 76. Kf4
{[%clk 0:00:02.7]} 76... Rf1 {[%clk 0:00:03]} 77. Qxe6+ {[%clk 0:00:02.2]} 77...
Kc7 {[%clk 0:00:03.6]} 78. Qxd5 {[%clk 0:00:03]} 78... Rxf2+ {[%clk 0:00:03.1]}
79. Kg5 {[%clk 0:00:02.4]} 79... Qg4+ {[%clk 0:00:02]} 80. Kf6 {[%clk
0:00:03.3]} 80... f4 {[%clk 0:00:01.5]} 81. Qc5+ {[%clk 0:00:03.4]} 81... Kd7
{[%clk 0:00:01.6]} 82. Qd6+ {[%clk 0:00:04]} 82... Kc8 {[%clk 0:00:02.2]} 83.
Re4 {[%clk 0:00:04.4]} 83... fxg3+ {[%clk 0:00:02.3]} 0-1

[Event "*** Titled Tuesday Blitz"]
[Site "Chess.com"]
[Date "2021.04.06"]
[Round "5"]
[White "K_A_S_T_O_R"]
[Black "AlexSuv"]
[Result "0-1"]
[WhiteElo "2775"]
[BlackElo "2579"]
[TimeControl "180+1"]
[EndTime "10:59:47 PDT"]
[Termination "AlexSuv won on time"]

1. e4 {[%clk 0:03:00.9]} 1... c5 {[%clk 0:02:58.6]} 2. Nf3 {[%clk 0:03:00.6]}
2... e6 {[%clk 0:02:58.7]} 3. d4 {[%clk 0:03:01]} 3... cxd4 {[%clk 0:02:59.6]}
4. Nxd4 {[%clk 0:03:01.4]} 4... Nc6 {[%clk 0:03:00.5]} 5. Nb5 {[%clk 0:03:00.8]}
5... d6 {[%clk 0:02:56.7]} 6. c4 {[%clk 0:03:01.1]} 6... a6 {[%clk 0:02:56]} 7.
N5c3 {[%clk 0:03:00.5]} 7... Nf6 {[%clk 0:02:55.4]} 8. Be2 {[%clk 0:03:00.8]}
8... Be7 {[%clk 0:02:55.1]} 9. O-O {[%clk 0:03:01.2]} 9... O-O {[%clk 0:02:55]}
10. Na3 {[%clk 0:03:01.4]} 10... b6 {[%clk 0:02:53]} 11. Be3 {[%clk 0:03:01]}
11... Bb7 {[%clk 0:02:53.2]} 12. Qd2 {[%clk 0:02:59.5]} 12... Ne5 {[%clk
0:02:50.2]} 13. f3 {[%clk 0:02:59.2]} 13... Rc8 {[%clk 0:02:47.3]} 14. Rfd1
{[%clk 0:02:58.4]} 14... Qc7 {[%clk 0:02:47.7]} 15. Rac1 {[%clk 0:02:56.3]}
15... Rfd8 {[%clk 0:02:46.9]} 16. Kh1 {[%clk 0:02:55.6]} 16... Ng6 {[%clk
0:02:28]} 17. Na4 {[%clk 0:02:49.2]} 17... Nd7 {[%clk 0:02:27.4]} 18. b4 {[%clk
0:02:48.1]} 18... Nge5 {[%clk 0:02:18.9]} 19. Bf1 {[%clk 0:02:47.2]} 19... Bc6
{[%clk 0:02:13.6]} 20. Nc3 {[%clk 0:02:20.8]} 20... Nf6 {[%clk 0:02:01.5]} 21.
Nd5 {[%clk 0:02:16.8]} 21... exd5 {[%clk 0:01:29.1]} 22. cxd5 {[%clk 0:02:12.8]}
22... Qb7 {[%clk 0:01:27]} 23. dxc6 {[%clk 0:02:11.9]} 23... Rxc6 {[%clk
0:01:27.3]} 24. Rxc6 {[%clk 0:02:10.1]} 24... Nxc6 {[%clk 0:01:28.2]} 25. b5
{[%clk 0:01:57.2]} 25... axb5 {[%clk 0:01:27]} 26. Nxb5 {[%clk 0:01:57.6]} 26...
d5 {[%clk 0:01:27.2]} 27. exd5 {[%clk 0:01:52.5]} 27... Nxd5 {[%clk 0:01:26.2]}
28. Bd3 {[%clk 0:01:35.7]} 28... Nxe3 {[%clk 0:01:16.6]} 29. Qxe3 {[%clk
0:01:36]} 29... Nb4 {[%clk 0:01:10.6]} 30. a3 {[%clk 0:01:20.3]} 30... Nxd3
{[%clk 0:01:06]} 31. Rxd3 {[%clk 0:01:20.2]} 31... Rc8 {[%clk 0:00:54.1]} 32.
Rd1 {[%clk 0:01:12.6]} 32... Bc5 {[%clk 0:00:45.4]} 33. Qd3 {[%clk 0:01:09.8]}
33... h6 {[%clk 0:00:33.6]} 34. a4 {[%clk 0:01:06.6]} 34... Qe7 {[%clk
0:00:30.4]} 35. g3 {[%clk 0:01:02.4]} 35... Re8 {[%clk 0:00:29.4]} 36. Nc3
{[%clk 0:00:58.9]} 36... Qe3 {[%clk 0:00:27.9]} 37. Ne4 {[%clk 0:00:50.9]} 37...
Qxd3 {[%clk 0:00:15.5]} 38. Rxd3 {[%clk 0:00:51.8]} 38... Bf8 {[%clk 0:00:13.6]}
39. Rd4 {[%clk 0:00:49.2]} 39... Re6 {[%clk 0:00:12.9]} 40. g4 {[%clk
0:00:47.7]} 40... g6 {[%clk 0:00:12.5]} 41. Rc4 {[%clk 0:00:40]} 41... Kg7
{[%clk 0:00:12.6]} 42. Kg2 {[%clk 0:00:38.9]} 42... Be7 {[%clk 0:00:12.7]} 43.
f4 {[%clk 0:00:38]} 43... f5 {[%clk 0:00:12.7]} 44. gxf5 {[%clk 0:00:37.6]}
44... gxf5 {[%clk 0:00:13.6]} 45. Ng3 {[%clk 0:00:38.3]} 45... Kg6 {[%clk
0:00:13.4]} 46. Kf3 {[%clk 0:00:33.8]} 46... Bc5 {[%clk 0:00:12.4]} 47. Rc3
{[%clk 0:00:31.7]} 47... h5 {[%clk 0:00:12.4]} 48. Ne2 {[%clk 0:00:23.9]} 48...
h4 {[%clk 0:00:11.5]} 49. h3 {[%clk 0:00:21.8]} 49... Rd6 {[%clk 0:00:04.9]} 50.
Rb3 {[%clk 0:00:10.6]} 50... Re6 {[%clk 0:00:03.9]} 51. Rd3 {[%clk 0:00:07.9]}
51... Kf6 {[%clk 0:00:02.6]} 52. Nc3 {[%clk 0:00:08.3]} 52... Re1 {[%clk
0:00:01.7]} 53. Nd5+ {[%clk 0:00:08.6]} 53... Kg6 {[%clk 0:00:02.2]} 54. Rc3
{[%clk 0:00:07.8]} 54... Rf1+ {[%clk 0:00:02.5]} 55. Ke2 {[%clk 0:00:07.9]}
55... Rf2+ {[%clk 0:00:02.8]} 56. Ke1 {[%clk 0:00:07.7]} 56... Ra2 {[%clk
0:00:01.6]} 57. Rd3 {[%clk 0:00:07.6]} 57... Rxa4 {[%clk 0:00:01.9]} 58. Ke2
{[%clk 0:00:07.9]} 58... Re4+ {[%clk 0:00:02.5]} 59. Kf3 {[%clk 0:00:08.2]}
59... b5 {[%clk 0:00:03.2]} 60. Rc3 {[%clk 0:00:06.5]} 60... Bf8 {[%clk
0:00:03.5]} 61. Rc6+ {[%clk 0:00:06.7]} 61... Kf7 {[%clk 0:00:04.1]} 62. Ne3
{[%clk 0:00:07.1]} 62... b4 {[%clk 0:00:04.2]} 63. Nxf5 {[%clk 0:00:06.8]} 63...
Re1 {[%clk 0:00:04.6]} 64. Rb6 {[%clk 0:00:05.9]} 64... Rb1 {[%clk 0:00:04.7]}
65. Rb7+ {[%clk 0:00:03.6]} 65... Ke6 {[%clk 0:00:04.9]} 66. Nd4+ {[%clk
0:00:04.1]} 66... Kd5 {[%clk 0:00:05.3]} 67. Nc2 {[%clk 0:00:04.7]} 67... b3
{[%clk 0:00:05.1]} 68. Ne3+ {[%clk 0:00:05.1]} 68... Kd4 {[%clk 0:00:05.6]} 69.
Rd7+ {[%clk 0:00:04.2]} 69... Kc3 {[%clk 0:00:06]} 70. Rc7+ {[%clk 0:00:04.3]}
70... Kb2 {[%clk 0:00:06]} 71. Nc4+ {[%clk 0:00:04]} 71... Kc1 {[%clk
0:00:05.6]} 72. Na5+ {[%clk 0:00:02.2]} 72... Kd1 {[%clk 0:00:05.3]} 73. Nxb3
{[%clk 0:00:01.1]} 73... Rxb3+ {[%clk 0:00:05.3]} 74. Kg4 {[%clk 0:00:01.8]}
74... Bd6 {[%clk 0:00:05.4]} 75. Kxh4 {[%clk 0:00:02.7]} 75... Bxc7 {[%clk
0:00:04.8]} 76. Kg4 {[%clk 0:00:03.6]} 76... Rb4 {[%clk 0:00:05]} 77. h4 {[%clk
0:00:03.6]} 77... Rxf4+ {[%clk 0:00:05.9]} 78. Kg5 {[%clk 0:00:04.5]} 78... Rf1
{[%clk 0:00:06.2]} 79. h5 {[%clk 0:00:05.4]} 79... Ke2 {[%clk 0:00:06.7]} 80. h6
{[%clk 0:00:05]} 80... Bf4+ {[%clk 0:00:07.6]} 81. Kh5 {[%clk 0:00:04.7]} 81...
Bxh6 {[%clk 0:00:08.5]} 82. Kxh6 {[%clk 0:00:05.6]} 82... Rg1 {[%clk 0:00:09.2]}
0-1

[Event "*** Titled Tuesday Blitz"]
[Site "Chess.com"]
[Date "2021.04.06"]
[Round "5"]
[White "Shahaliyev"]
[Black "Slovak_fighter2000"]
[Result "1-0"]
[WhiteElo "2655"]
[BlackElo "2487"]
[TimeControl "180+1"]
[EndTime "10:59:54 PDT"]
[Termination "Shahaliyev won on time"]

1. e4 {[%clk 0:02:46]} 1... e6 {[%clk 0:03:00.4]} 2. Nc3 {[%clk 0:02:46.3]} 2...
d5 {[%clk 0:03:00.9]} 3. d4 {[%clk 0:02:47.2]} 3... Nf6 {[%clk 0:03:00.4]} 4.
Bg5 {[%clk 0:02:43.9]} 4... Be7 {[%clk 0:02:59.4]} 5. e5 {[%clk 0:02:42.4]} 5...
Nfd7 {[%clk 0:02:58.4]} 6. h4 {[%clk 0:02:42.6]} 6... h6 {[%clk 0:02:57.4]} 7.
Bxe7 {[%clk 0:02:41.1]} 7... Qxe7 {[%clk 0:02:58.3]} 8. Qg4 {[%clk 0:02:39.7]}
8... O-O {[%clk 0:02:58.6]} 9. O-O-O {[%clk 0:02:36.8]} 9... c5 {[%clk 0:02:59]}
10. f4 {[%clk 0:02:35.9]} 10... Nc6 {[%clk 0:02:58.4]} 11. Nf3 {[%clk
0:02:35.8]} 11... f6 {[%clk 0:02:55.5]} 12. Nb5 {[%clk 0:02:16.8]} 12... cxd4
{[%clk 0:02:53.8]} 13. Nbxd4 {[%clk 0:02:04.3]} 13... Nxd4 {[%clk 0:02:39.6]}
14. Nxd4 {[%clk 0:02:05.2]} 14... Nc5 {[%clk 0:02:37.7]} 15. Bd3 {[%clk
0:01:51.6]} 15... fxe5 {[%clk 0:02:29.6]} 16. fxe5 {[%clk 0:01:40.7]} 16...
Nxd3+ {[%clk 0:02:24.4]} 17. Rxd3 {[%clk 0:01:41.6]} 17... Bd7 {[%clk
0:02:17.6]} 18. Rf3 {[%clk 0:01:40.2]} 18... Rxf3 {[%clk 0:02:16.6]} 19. gxf3
{[%clk 0:01:25.9]} 19... Rf8 {[%clk 0:02:15.7]} 20. Rg1 {[%clk 0:01:24.6]} 20...
Qf7 {[%clk 0:02:07.8]} 21. c3 {[%clk 0:01:09]} 21... Qf4+ {[%clk 0:02:05.6]} 22.
Qxf4 {[%clk 0:01:09.2]} 22... Rxf4 {[%clk 0:02:05.9]} 23. Rg4 {[%clk 0:01:10.1]}
23... Rf8 {[%clk 0:01:55.5]} 24. Kd2 {[%clk 0:01:10.3]} 24... Kh7 {[%clk
0:01:42.4]} 25. Ke3 {[%clk 0:01:09.1]} 25... b6 {[%clk 0:01:40.7]} 26. Rg1
{[%clk 0:01:05.6]} 26... Rc8 {[%clk 0:01:37.8]} 27. Ra1 {[%clk 0:01:03.6]} 27...
a5 {[%clk 0:01:36]} 28. Rg1 {[%clk 0:00:57.7]} 28... g6 {[%clk 0:01:30.7]} 29.
Rg4 {[%clk 0:00:56]} 29... Rf8 {[%clk 0:01:27.9]} 30. Rg1 {[%clk 0:00:47.3]}
30... Kg7 {[%clk 0:01:25.5]} 31. Ne2 {[%clk 0:00:46.8]} 31... Kh7 {[%clk
0:01:17.3]} 32. Nf4 {[%clk 0:00:37.5]} 32... Rg8 {[%clk 0:01:16.2]} 33. Rg4
{[%clk 0:00:27.4]} 33... Rg7 {[%clk 0:01:05.6]} 34. Ne2 {[%clk 0:00:26.6]} 34...
Rf7 {[%clk 0:00:56.6]} 35. Nf4 {[%clk 0:00:23.1]} 35... Rg7 {[%clk 0:00:56.5]}
36. Rg1 {[%clk 0:00:23.4]} 36... Rg8 {[%clk 0:00:54.8]} 37. Ne2 {[%clk
0:00:23.4]} 37... Be8 {[%clk 0:00:49.2]} 38. f4 {[%clk 0:00:23.4]} 38... Bd7
{[%clk 0:00:46.4]} 39. Nd4 {[%clk 0:00:23.7]} 39... Rg7 {[%clk 0:00:35.2]} 40.
Nf3 {[%clk 0:00:23.9]} 40... Rg8 {[%clk 0:00:33]} 41. Nh2 {[%clk 0:00:24.2]}
41... Rc8 {[%clk 0:00:32.8]} 42. Ng4 {[%clk 0:00:24.5]} 42... Be8 {[%clk
0:00:19.6]} 43. Nf6+ {[%clk 0:00:21.1]} 43... Kg7 {[%clk 0:00:19.9]} 44. h5
{[%clk 0:00:20.7]} 44... Bf7 {[%clk 0:00:18.5]} 45. Nd7 {[%clk 0:00:13.4]} 45...
b5 {[%clk 0:00:15.5]} 46. hxg6 {[%clk 0:00:08.7]} 46... Bxg6 {[%clk 0:00:16.4]}
47. Nf6 {[%clk 0:00:07.8]} 47... Kf7 {[%clk 0:00:16.2]} 48. Rh1 {[%clk
0:00:08.3]} 48... Rh8 {[%clk 0:00:15.8]} 49. Kd4 {[%clk 0:00:08.5]} 49... b4
{[%clk 0:00:15]} 50. cxb4 {[%clk 0:00:06.5]} 50... axb4 {[%clk 0:00:15.9]} 51.
a3 {[%clk 0:00:06.7]} 51... bxa3 {[%clk 0:00:14.7]} 52. bxa3 {[%clk 0:00:07.6]}
52... h5 {[%clk 0:00:13.8]} 53. a4 {[%clk 0:00:07]} 53... h4 {[%clk 0:00:13.4]}
54. a5 {[%clk 0:00:06.4]} 54... h3 {[%clk 0:00:12.7]} 55. Rh2 {[%clk 0:00:06.9]}
55... Bf5 {[%clk 0:00:12.9]} 56. Kc5 {[%clk 0:00:07.1]} 56... Rc8+ {[%clk
0:00:12.8]} 57. Kb6 {[%clk 0:00:07.3]} 57... Rb8+ {[%clk 0:00:12.9]} 58. Kc7
{[%clk 0:00:07.3]} 58... Rb3 {[%clk 0:00:12]} 59. Nd7 {[%clk 0:00:07]} 59... Ra3
{[%clk 0:00:11.3]} 60. Kb6 {[%clk 0:00:07.1]} 60... Rb3+ {[%clk 0:00:11.6]} 61.
Kc6 {[%clk 0:00:05.6]} 61... Ra3 {[%clk 0:00:11.5]} 62. Kb5 {[%clk 0:00:06]}
62... d4 {[%clk 0:00:09.8]} 63. Nc5 {[%clk 0:00:05.6]} 63... d3 {[%clk
0:00:08.5]} 64. a6 {[%clk 0:00:05.5]} 64... Bg4 {[%clk 0:00:06.4]} 65. Kb4
{[%clk 0:00:04.9]} 65... Ra1 {[%clk 0:00:05.5]} 66. Na4 {[%clk 0:00:03.6]} 66...
Be2 {[%clk 0:00:04.5]} 67. Nc3 {[%clk 0:00:01.3]} 67... Bf3 {[%clk 0:00:04.3]}
68. Kc4 {[%clk 0:00:01.7]} 68... d2 {[%clk 0:00:04.2]} 69. Rxh3 {[%clk
0:00:01.8]} 69... Bg2 {[%clk 0:00:04.8]} 70. Rh7+ {[%clk 0:00:02.1]} 70... Kg6
{[%clk 0:00:04.6]} 71. Rd7 {[%clk 0:00:03]} 71... Kf5 {[%clk 0:00:02.8]} 72.
Rxd2 {[%clk 0:00:03.5]} 72... Bf3 {[%clk 0:00:02.8]} 73. Kb5 {[%clk 0:00:04]}
73... Kxf4 {[%clk 0:00:03.2]} 74. Kb6 {[%clk 0:00:04.5]} 74... Ke3 {[%clk
0:00:03.7]} 75. Rb2 {[%clk 0:00:04.7]} 75... Kd4 {[%clk 0:00:03.9]} 76. Nb5+
{[%clk 0:00:05.2]} 76... Kxe5 {[%clk 0:00:04.1]} 77. a7 {[%clk 0:00:05.6]} 77...
Rd1 {[%clk 0:00:02.8]} 78. Ra2 {[%clk 0:00:05.6]} 78... Rd8 {[%clk 0:00:01.6]}
79. Ra3 {[%clk 0:00:06]} 79... Ba8 {[%clk 0:00:01.9]} 80. Nc7 {[%clk 0:00:06.4]}
80... Kf5 {[%clk 0:00:01.7]} 81. Nxa8 {[%clk 0:00:06.9]} 81... Rxa8 {[%clk
0:00:02.3]} 82. Kb7 {[%clk 0:00:07.6]} 82... Rh8 {[%clk 0:00:03]} 83. a8=Q
{[%clk 0:00:08]} 83... Rxa8 {[%clk 0:00:03.6]} 84. Kxa8 {[%clk 0:00:08.9]} 84...
e5 {[%clk 0:00:03.8]} 85. Kb7 {[%clk 0:00:09.8]} 85... e4 {[%clk 0:00:04.7]} 86.
Kc6 {[%clk 0:00:10.3]} 86... Kf4 {[%clk 0:00:05.3]} 87. Kd5 {[%clk 0:00:09.2]}
87... e3 {[%clk 0:00:05.7]} 88. Kd4 {[%clk 0:00:09.1]} 88... e2 {[%clk
0:00:05.6]} 89. Re3 {[%clk 0:00:09.7]} 89... e1=Q {[%clk 0:00:04.8]} 90. Rxe1
{[%clk 0:00:10.6]} 1-0